Workbook

Sheet 2022
A1: 2022年度新能源汽车推广应用补助资金清算审核车辆信息表
A2: 地区 | B2: 序号 | C2: 车辆生产企业 | D2: 车辆型号 | E2: 申报推广数 （辆） | F2: 申请补助标准 （万元） | G2: 申请清算资金 （万元） | H2: 核定推广数 （辆） | I2: 核定补助标准 （万元） | J2: 应清算补助资金 （万元） | K2: 按整车企业取整后补助资金（万元） | L2: 核减原因 | M2: 此前待扣回预拨资金（万元） | N2: 此次扣回预拨资金 （万元） | O2: 扣回相应预拨资金 后剩余资金（万元）
A3: 总计 | E3: =SUM(E4:E2480)/3 -> 3337743 | G3: =SUM(G4:G2480)/3 -> 3174669.03 | H3: =SUM(H4:H2480)/3 -> 3168813 | J3: =SUM(J4:J2480)/3 -> 2993570.309 | K3: =SUM(K4:K2391)/2 -> 2993568 | M3: =SUM(M4:M2391)/2 -> 1541993 | N3: =SUM(N4:N2391)/2 -> 1428907 | O3: =SUM(O4:O2391)/2 -> 1564661
A4: 北京市 | B4: 合计 | E4: =SUM(E5:E95)/2 -> 12027 | G4: =SUM(G5:G95)/2 -> 14754.1358 | H4: =SUM(H5:H95)/2 -> 11273 | J4: =SUM(J5:J95)/2 -> 13563.6416 | K4: =K5+K28+K43 -> 13563 | M4: =M5+M28+M43 -> 15145 | N4: =N5+N28+N43 -> 11009 | O4: =O5+O28+O43 -> 2554
B5: 1 | C5: 北京汽车股份有限公司 | D5: 小计 | E5: =SUM(E6:E27) -> 6952 | G5: =SUM(G6:G27) -> 6949.8166 | H5: 6657 | J5: 6599.4246 | K5: =ROUND(J5,0) -> 6599 | M5: 8409 | N5: =K5 -> 6599 | O5: =K5-N5 -> 0
D6: BJ7000C5D2-BEV | E6: 1 | F6: 1.134 | G6: =E6*F6 -> 1.134 | H6: 1 | I6: 1.134 | J6: =H6*I6 -> 1.134
D7: BJ7000C5D3-BEV | E7: 318 | F7: 0.7938 | G7: =E7*F7 -> 252.4284 | H7: 318 | I7: 0.7938 | J7: =H7*I7 -> 252.4284
D8: BJ7000C5D3-BEV | E8: 945 | F8: 1.134 | G8: 1071.63 | H8: 882 | I8: 1.134 | J8: 1000.188 | L8: 核减63辆，原因为：40辆需进一步核实后予以清算；23辆车辆注册登记信息有误
D9: BJ7000C5D5-BEV | E9: 8 | F9: 1.134 | G9: 9.072 | H9: 7 | I9: 1.134 | J9: 7.938 | L9: 核减1辆，原因为：需进一步核实后予以清算
D10: BJ7000C5D7-BEV | E10: 54 | F10: 0.882 | G10: 47.628 | H10: 54 | I10: 0.882 | J10: 47.628
D11: BJ7000C5D7-BEV | E11: 718 | F11: 1.26 | G11: 904.68 | H11: 637 | I11: 1.26 | J11: 802.62 | L11: 核减81辆，原因为：30辆需进一步核实后予以清算；51辆车辆注册登记信息有误
D12: BJ7000C5DA-BEV | E12: 8 | F12: 0.882 | G12: 7.056 | H12: 8 | I12: 0.882 | J12: 7.056
D13: BJ7000C5DA-BEV | E13: 70 | F13: 1.26 | G13: 88.2 | H13: 68 | I13: 1.26 | J13: 85.68 | L13: 核减2辆，原因为：需进一步核实后予以清算
D14: BJ7000C5DB-BEV | E14: 33 | F14: 0.5096 | G14: 16.8168 | H14: 33 | I14: 0.5096 | J14: 16.8168
D15: BJ7000C5DB-BEV | E15: 213 | F15: 0.728 | G15: 155.064 | H15: 209 | I15: 0.728 | J15: 152.152 | L15: 核减4辆，原因为：1辆需进一步核实后予以清算；3辆车辆注册登记信息有误
D16: BJ7000C5DD-BEV | E16: 698 | F16: 1.26 | G16: 879.48 | H16: 698 | I16: 1.26 | J16: 879.48
D17: BJ7000C5DD-BEV | E17: 26 | F17: 1.26 | G17: 32.76 | H17: 6 | I17: 0.882 | J17: 5.292 | L17: 核减20辆，原因为：7辆需进一步核实后予以清算；13辆车辆注册登记信息有误
D18: BJ7000C5DE-BEV | E18: 7 | F18: 0.5096 | G18: 3.5672 | H18: 7 | I18: 0.5096 | J18: 3.5672
D19: BJ7000C5DE-BEV | E19: 2488 | F19: 0.728 | G19: 1811.264 | H19: 2478 | I19: 0.728 | J19: 1803.984 | L19: 核减10辆，原因为：1辆需进一步核实后予以清算；8辆车辆注册登记信息有误；1辆需经地方主管部门复核后予以清算
D20: BJ7000C5DF-BEV | E20: 9 | F20: 0.882 | G20: 7.938 | H20: 9 | I20: 0.882 | J20: 7.938
D21: BJ7000C5DF-BEV | E21: 319 | F21: 1.26 | G21: 401.94 | H21: 289 | I21: 1.26 | J21: 364.14 | L21: 核减30辆，原因为：14辆需进一步核实后予以清算；16辆车辆注册登记信息有误
D22: BJ7000C5DH-BEV | E22: 17 | F22: 0.882 | G22: 14.994 | H22: 16 | I22: 0.882 | J22: 14.112 | L22: 核减1辆，原因为：车辆注册登记信息有误
D23: BJ7000C5DH-BEV | E23: 845 | F23: 1.26 | G23: 1064.7 | H23: 845 | I23: 1.26 | J23: 1064.7
D24: BJ7000C5DH-BEV | E24: 61 | F24: 1.26 | G24: 76.86 | H24: 3 | I24: 0.882 | J24: 2.646 | L24: 核减58辆，原因为：25辆需进一步核实后予以清算；33辆车辆注册登记信息有误
D25: BJ7001U5E2-BEV | E25: 6 | F25: 0.9072 | G25: 5.4432 | H25: 5 | I25: 0.9072 | J25: 4.536 | L25: 核减1辆，原因为：车辆注册登记信息有误
D26: BJ7003U3D2-BEV | E26: 3 | F26: 0.635 | G26: 1.905 | H26: 3 | I26: 0.635 | J26: 1.905
D27: BJ7003U3D2-BEV | E27: 105 | F27: 0.9072 | G27: 95.256 | H27: 81 | I27: 0.9072 | J27: 73.4832 | L27: 核减24辆，原因为：17辆需进一步核实后予以清算；7辆车辆注册登记信息有误
B28: 2 | C28: 北京新能源汽车股份有限公司 | D28: 小计 | E28: =SUM(E29:E42) -> 2608 | G28: =SUM(G29:G42) -> 2704.084 | H28: =SUM(H29:H42) -> 2485 | J28: =SUM(J29:J42) -> 2554.1972 | K28: =ROUND(J28,0) -> 2554 | M28: 0 | N28: =M28 -> 0 | O28: =K28-N28 -> 2554
D29: BJ7000C5EB-BEV | E29: 10 | F29: 0.4586 | G29: =E29*F29 -> 4.586 | H29: 10 | I29: 0.4586 | J29: =H29*I29 -> 4.586
D30: BJ7000C5EB-BEV | E30: 11 | F30: 0.6552 | G30: 7.2072 | H30: 10 | I30: 0.6552 | J30: 6.552 | L30: 核减1辆，原因为：需进一步核实后予以清算
D31: BJ7000C5ED-BEV | E31: 2 | F31: 0.4586 | G31: 0.9172 | H31: 2 | I31: 0.4586 | J31: 0.9172
D32: BJ7000C5ED-BEV | E32: 32 | F32: 0.6552 | G32: 20.9664 | H32: 28 | I32: 0.6552 | J32: 18.3456 | L32: 核减4辆，原因为：需进一步核实后予以清算
D33: BJ7000CTD-BEV | E33: 1041 | F33: 0.7938 | G33: 826.3458 | H33: 1040 | I33: 0.7938 | J33: 825.552 | L33: 核减1辆，原因为：车辆注册登记信息有误
D34: BJ7000CTD-BEV | E34: 311 | F34: 1.134 | G34: 352.674 | H34: 310 | I34: 1.134 | J34: 351.54 | L34: 核减1辆，原因为：车辆注册登记信息有误
D35: BJ7000USD1-BEV | E35: 26 | F35: 0.882 | G35: 22.932 | H35: 25 | I35: 0.882 | J35: 22.05 | L35: 核减1辆，原因为：车辆注册登记信息有误
D36: BJ7000USD1-BEV | E36: 1143 | F36: 1.26 | G36: 1440.18 | H36: 1031 | I36: 1.26 | J36: 1299.06 | L36: 核减112辆，原因为：64辆需进一步核实后予以清算；48辆车辆注册登记信息有误
D37: BJ7000USD2-BEV | E37: 10 | F37: 1.134 | G37: 11.34 | H37: 9 | I37: 1.134 | J37: 10.206 | L37: 核减1辆，原因为：需进一步核实后予以清算
D38: BJ7000USD3-BEV | E38: 5 | F38: 0.728 | G38: 3.64 | H38: 4 | I38: 0.728 | J38: 2.912 | L38: 核减1辆，原因为：需进一步核实后予以清算
D39: BJ7000USD5-BEV | E39: 4 | F39: 1.26 | G39: 5.04 | H39: 4 | I39: 1.26 | J39: 5.04
D40: BJ7001BPHF-BEV | E40: 3 | F40: 0.4586 | G40: 1.3758 | H40: 3 | I40: 0.4586 | J40: 1.3758
D41: BJ7001BPHF-BEV | E41: 8 | F41: 0.6552 | G41: 5.2416 | H41: 8 | I41: 0.6552 | J41: 5.2416
D42: BJ7001BPHH-BEV | E42: 2 | F42: 0.819 | G42: 1.638 | H42: 1 | I42: 0.819 | J42: 0.819 | L42: 核减1辆，原因为：车辆注册登记信息有误
B43: 3 | C43: 北汽福田汽车股份有限公司 | D43: 小计 | E43: =SUM(E44:E95) -> 2467 | G43: =SUM(G44:G95) -> 5100.2352 | H43: =SUM(H44:H95) -> 2131 | J43: =SUM(J44:J95) -> 4410.0198 | K43: =ROUND(J43,0) -> 4410 | M43: 6736 | N43: =4410 -> 4410 | O43: =K43-N43 -> 0
D44: BJ1045EVJA10 | E44: 2 | F44: 2.0447 | G44: =E44*F44 -> 4.0894 | H44: 2 | I44: 2.0447 | J44: =H44*I44 -> 4.0894
D45: BJ1045EVJA9 | E45: 19 | F45: 2.6384 | G45: 50.1296 | H45: 19 | I45: 2.6384 | J45: 50.1296
D46: BJ1045EVJA9 | E46: 4 | F46: 2.6384 | G46: 10.5536 | H46: 4 | I46: 1.8427 | J46: 7.3708
D47: BJ1045EVJAK | E47: 7 | F47: 2.5268 | G47: 17.6876 | H47: 7 | I47: 2.5268 | J47: 17.6876
D48: BJ1045EVJAK | E48: 6 | F48: 2.5268 | G48: 15.1608 | H48: 6 | I48: 1.7648 | J48: 10.5888
D49: BJ3319EVPA2 | E49: 62 | F49: 2.8 | G49: 173.6 | H49: 62 | I49: 2.8 | J49: 173.6
D50: BJ4259EVPA1 | E50: 256 | F50: 2.8 | G50: 716.8 | H50: 256 | I50: 2.8 | J50: 716.8
D51: BJ5038XXYEV1 | E51: 4 | F51: 0.9737 | G51: 3.8948 | H51: 4 | I51: 0.9737 | J51: 3.8948
D52: BJ5038XXYEV1 | E52: 3 | F52: 0.9737 | G52: 2.9211 | H52: 3 | I52: 0.6801 | J52: 2.0403
D53: BJ5038XXYEV2 | E53: 187 | F53: 1.1683 | G53: 218.4721 | H53: 187 | I53: 1.1683 | J53: 218.4721
D54: BJ5038XXYEV2 | E54: 79 | F54: 1.1683 | G54: 92.2957 | H54: 75 | I54: 0.8159 | J54: 61.1925 | L54: 核减4辆，原因为：需经地方主管部门复核后予以清算
D55: BJ5038XXYEV4 | E55: 46 | F55: 0.9737 | G55: 44.7902 | H55: 46 | I55: 0.9737 | J55: 44.7902
D56: BJ5038XXYEV4 | E56: 7 | F56: 0.9737 | G56: 6.8159 | H56: 6 | I56: 0.6801 | J56: 4.0806 | L56: 核减1辆，原因为：需经地方主管部门复核后予以清算
D57: BJ5039XXYEV6 | E57: 206 | F57: 1.2658 | G57: 260.7548 | H57: 206 | I57: 1.2658 | J57: 260.7548
D58: BJ5039XXYEV6 | E58: 488 | F58: 1.2658 | G58: 617.7104 | H58: 178 | I58: 0.884 | J58: 157.352 | L58: 核减310辆，原因为：306辆EKG值与推荐目录参数不一致；1辆车辆注册登记信息有误；3辆需经地方主管部门复核后予以清算
D59: BJ5044TYHEV-H1 | E59: 101 | F59: 1.6844 | G59: 170.1244 | H59: 101 | I59: 1.6844 | J59: 170.1244
D60: BJ5045CCYEV | E60: 52 | F60: 2.0447 | G60: 106.3244 | H60: 52 | I60: 2.0447 | J60: 106.3244
D61: BJ5045CCYEV | E61: 3 | F61: 2.0447 | G61: 6.1341 | H61: 3 | I61: 1.4281 | J61: 4.2843
D62: BJ5045CCYEV4 | E62: 9 | F62: 2.6384 | G62: 23.7456 | H62: 9 | I62: 2.6384 | J62: 23.7456
D63: BJ5045CCYEV4 | E63: 1 | F63: 2.6384 | G63: 2.6384 | H63: 1 | I63: 1.8427 | J63: 1.8427
D64: BJ5045CCYEVK | E64: 96 | F64: 2.5268 | G64: 242.5728 | H64: 96 | I64: 2.5268 | J64: 242.5728
D65: BJ5045CCYEVK | E65: 5 | F65: 2.5268 | G65: 12.634 | H65: 5 | I65: 1.7648 | J65: 8.824
D66: BJ5045XLCEV3 | E66: 1 | F66: 2.6384 | G66: 2.6384 | H66: 1 | I66: 1.8427 | J66: 1.8427
D67: BJ5045XLCEVK | E67: 31 | F67: 2.5268 | G67: 78.3308 | H67: 31 | I67: 2.5268 | J67: 78.3308
D68: BJ5045XLCEVK | E68: 2 | F68: 2.5268 | G68: 5.0536 | H68: 2 | I68: 1.7648 | J68: 3.5296
D69: BJ5045XXYEV10 | E69: 1 | F69: 2.0447 | G69: 2.0447 | H69: 1 | I69: 2.0447 | J69: 2.0447
D70: BJ5045XXYEV8 | E70: 118 | F70: 2.0447 | G70: 241.2746 | H70: 118 | I70: 2.0447 | J70: 241.2746
D71: BJ5045XXYEV8 | E71: 41 | F71: 2.0447 | G71: 83.8327 | H71: 41 | I71: 1.4281 | J71: 58.5521
D72: BJ5045XXYEV9 | E72: 2 | F72: 2.6384 | G72: 5.2768 | H72: 2 | I72: 2.6384 | J72: 5.2768
D73: BJ5045XXYEV9 | E73: 1 | F73: 2.6384 | G73: 2.6384 | H73: 1 | I73: 1.8427 | J73: 1.8427
D74: BJ5045XXYEVC | E74: 6 | F74: 2.6384 | G74: 15.8304 | H74: 6 | I74: 2.6384 | J74: 15.8304
D75: BJ5045XXYEVC | E75: 1 | F75: 2.6384 | G75: 2.6384 | H75: 1 | I75: 1.8427 | J75: 1.8427
D76: BJ5045XXYEVJ | E76: 53 | F76: 2.6384 | G76: =E76*F76 -> 139.8352 | H76: 53 | I76: 2.6384 | J76: =H76*I76 -> 139.8352
D77: BJ5045XXYEVJ | E77: 12 | F77: 2.6384 | G77: 31.6608 | H77: 12 | I77: 1.8427 | J77: 22.1124
D78: BJ5045XXYEVK | E78: 320 | F78: 2.5268 | G78: 808.576 | H78: 320 | I78: 2.5268 | J78: 808.576
D79: BJ5045XXYEVK | E79: 47 | F79: 2.5268 | G79: 118.7596 | H79: 46 | I79: 1.7648 | J79: 81.1808 | L79: 核减1辆，原因为：车辆注册登记信息有误
D80: BJ5045XXYEVW | E80: 1 | F80: 2.5268 | G80: 2.5268 | H80: 1 | I80: 2.5268 | J80: 2.5268
D81: BJ5045ZKXEV10 | E81: 1 | F81: 2.0447 | G81: 2.0447 | H81: 1 | I81: 2.0447 | J81: 2.0447
D82: BJ5048XXYEV3 | E82: 13 | F82: 2.014 | G82: 26.182 | H82: 10 | I82: 2.014 | J82: 20.14 | L82: 核减3辆，原因为：电池生产企业与推荐目录参数不一致
D83: BJ5063XTYEV-H1 | E83: 33 | F83: 2.0447 | G83: 67.4751 | H83: 33 | I83: 2.0447 | J83: 67.4751
D84: BJ5082XTYEV-H1 | E84: 15 | F84: 2.6951 | G84: 40.4265 | H84: 0 | I84: 0 | J84: 0 | L84: 核减15辆，原因为：整备质量与推荐目录不一致
D85: BJ5122ZYSEV-H1 | E85: 1 | F85: 3.96 | G85: 3.96 | H85: 1 | I85: 3.96 | J85: 3.96
D86: BJ5123TSLEV-H1 | E86: 5 | F86: 3.96 | G86: 19.8 | H86: 5 | I86: 3.96 | J86: 19.8
D87: BJ5123TXSEV-H1 | E87: 14 | F87: 3.96 | G87: 55.44 | H87: 14 | I87: 3.96 | J87: 55.44
D88: BJ5182TDYEV-H1 | E88: 4 | F88: 3.96 | G88: 15.84 | H88: 4 | I88: 3.96 | J88: 15.84
D89: BJ5182TXSEV-H1 | E89: 30 | F89: 3.96 | G89: 118.8 | H89: 30 | I89: 3.96 | J89: 118.8
D90: BJ5183TXSEV-H1 | E90: 3 | F90: 3.96 | G90: 11.88 | H90: 3 | I90: 3.96 | J90: 11.88
D91: BJ5183ZYSEV-H1 | E91: 5 | F91: 3.96 | G91: 19.8 | H91: 5 | I91: 3.96 | J91: 19.8
D92: BJ5184GQXEV-H2 | E92: 27 | F92: 3.96 | G92: 106.92 | H92: 27 | I92: 3.96 | J92: 106.92
D93: BJ5184TCAEV-H1 | E93: 2 | F93: 3.96 | G93: 7.92 | H93: 2 | I93: 3.96 | J93: 7.92
D94: BJ5184TXSEV-H1 | E94: 3 | F94: 3.96 | G94: 11.88 | H94: 1 | I94: 3.96 | J94: 3.96 | L94: 核减2辆，原因为：整备质量与推荐目录不一致
D95: BJ6117EVCA-2 | E95: 31 | F95: 8.1 | G95: 251.1 | H95: 31 | I95: 6.48 | J95: 200.88
A96: 天津市 | B96: 合计 | E96: =SUM(E97:E103)/2 -> 2539 | G96: =SUM(G97:G103)/2 -> 1377.2416 | H96: =SUM(H97:H103)/2 -> 2471 | J96: =SUM(J97:J103)/2 -> 1336.09 | K96: =K97 -> 1336 | M96: =M97 -> 469 | N96: =N97 -> 469 | O96: =O97 -> 867
B97: 1 | C97: 一汽丰田汽车有限公司 | D97: 小计 | E97: =SUM(E98:E103) -> 2539 | G97: =SUM(G98:G103) -> 1377.2416 | H97: =SUM(H98:H103) -> 2471 | J97: =SUM(J98:J103) -> 1336.09 | K97: =ROUND(J97,0) -> 1336 | M97: 469 | N97: =M97 -> 469 | O97: =K97-N97 -> 867
D98: TV7001BEV | E98: 1 | F98: 0.7056 | G98: =E98*F98 -> 0.7056 | H98: 1 | I98: 0.7056 | J98: =H98*I98 -> 0.7056
D99: TV7001BEV | E99: 338 | F99: 1.008 | G99: 340.704 | H99: 325 | I99: 1.008 | J99: 327.6 | L99: 核减13辆，原因为：需进一步核实后予以清算
D100: TV7186HEV6 | E100: 120 | F100: 0.3332 | G100: 39.984 | H100: 117 | I100: 0.3332 | J100: 38.9844 | L100: 核减3辆，原因为：需进一步核实后予以清算
D101: TV7186HEV6 | E101: 1874 | F101: 0.476 | G101: 892.024 | H101: 1826 | I101: 0.476 | J101: 869.176 | L101: 核减48辆，原因为：44辆需进一步核实后予以清算；4辆车辆注册登记信息有误
D102: TV7186HEV6 | E102: 191 | F102: 0.504 | G102: 96.264 | H102: =191-2 -> 189 | I102: 0.504 | J102: 95.256 | L102: 核减2辆，原因为：不符合行驶里程数要求
D103: TV7186HEV6 | E103: 15 | F103: 0.504 | G103: 7.56 | H103: 13 | I103: 0.336 | J103: 4.368 | L103: 核减2辆，原因为：需进一步核实后予以清算
A104: 河北省 | B104: 合计 | E104: =SUM(E105:E182)/2 -> 102619 | G104: =SUM(G105:G182)/2 -> 106354.9374 | H104: =SUM(H105:H182)/2 -> 97110 | J104: =SUM(J105:J182)/2 -> 101438.1113 | K104: =K105+K118+K168 -> 101439 | M104: =M105+M118+M168 -> 42712 | N104: =N105+N118+N168 -> 40072 | O104: =O105+O118+O168 -> 61367
B105: 1 | C105: 保定长安客车制造有限公司 | D105: 小计 | E105: =SUM(E106:E117) -> 763 | G105: =SUM(G106:G117) -> 632.4601 | H105: =SUM(H106:H117) -> 753 | J105: =SUM(J106:J117) -> 624.7297 | K105: =ROUND(J105,0) -> 625 | M105: 2704 | N105: =K105 -> 625 | O105: =K105-N105 -> 0
D106: SC5021XXYAAABEV | E106: 104 | F106: 0.6319 | G106: =E106*F106 -> 65.7176 | H106: 102 | I106: 0.6319 | J106: =H106*I106 -> 64.4538 | L106: 核减2辆，原因为：需经地方主管部门复核后予以清算
D107: SC5021XXYAAABEV | E107: 81 | F107: 0.9047 | G107: 73.2807 | H107: 79 | I107: 0.9047 | J107: 71.4713 | L107: 核减2辆，原因为：需经地方主管部门复核后予以清算
D108: SC5021XXYAABBEV | E108: 28 | F108: 0.6801 | G108: 19.0428 | H108: 28 | I108: 0.6801 | J108: 19.0428
D109: SC5021XXYAABBEV | E109: 28 | F109: 0.9737 | G109: 27.2636 | H109: 27 | I109: 0.9737 | J109: 26.2899 | L109: 核减1辆，原因为：车辆注册登记信息有误
D110: SC5021XXYAACBEV | E110: 25 | F110: 0.6801 | G110: 17.0025 | H110: 25 | I110: 0.6801 | J110: 17.0025
D111: SC5021XXYAACBEV | E111: 15 | F111: 0.9737 | G111: 14.6055 | H111: 15 | I111: 0.9737 | J111: 14.6055
D112: SC5031XXYAAGBEV | E112: 186 | F112: 0.7367 | G112: 137.0262 | H112: 183 | I112: 0.7367 | J112: 134.8161 | L112: 核减3辆，原因为：车辆注册登记信息有误
D113: SC5031XXYAAGBEV | E113: 107 | F113: 1.0549 | G113: 112.8743 | H113: 107 | I113: 1.0549 | J113: 112.8743
D114: SC5031XXYAAHBEV | E114: 98 | F114: 0.7367 | G114: 72.1966 | H114: 96 | I114: 0.7367 | J114: 70.7232 | L114: 核减2辆，原因为：车辆注册登记信息有误
D115: SC5031XXYAAHBEV | E115: 66 | F115: 1.0549 | G115: 69.6234 | H115: 66 | I115: 1.0549 | J115: 69.6234
D116: SC5031XXYAALBEV | E116: 8 | F116: 0.7367 | G116: 5.8936 | H116: 8 | I116: 0.7367 | J116: 5.8936
D117: SC5031XXYAALBEV | E117: 17 | F117: 1.0549 | G117: 17.9333 | H117: 17 | I117: 1.0549 | J117: 17.9333
B118: 2 | C118: 长城汽车股份有限公司 | D118: 小计 | E118: =SUM(E119:E167) -> 101732 | G118: =SUM(G119:G167) -> 105608.0289 | H118: =SUM(H119:H167) -> 96234 | J118: =SUM(J119:J167) -> 100699.7847 | K118: =ROUND(J118,0) -> 100700 | M118: 39333 | N118: =M118 -> 39333 | O118: =K118-N118 -> 61367
D119: CC6470AH05EPHEV | E119: 1369 | F119: 0.48 | G119: =E119*F119 -> 657.12 | H119: 187 | I119: 0.48 | J119: =H119*I119 -> 89.76 | L119: 核减1182辆，原因为：驱动电机功率与推荐目录不一致
D120: CC6470AH05EPHEV | E120: 20 | F120: 0.504 | G120: 10.08 | H120: 17 | I120: 0.504 | J120: 8.568 | L120: 核减3辆，原因为：驱动电机功率与推荐目录不一致
D121: CC6470AH05FPHEV | E121: 401 | F121: 0.48 | G121: 192.48 | H121: 211 | I121: 0.48 | J121: 101.28 | L121: 核减190辆，原因为：驱动电机功率与推荐目录不一致
D122: CC6470AH05FPHEV | E122: 3 | F122: 0.504 | G122: 1.512 | H122: 1 | I122: 0.504 | J122: 0.504 | L122: 核减2辆，原因为：驱动电机功率与推荐目录不一致
D123: CC6470AH05GPHEV | E123: 168 | F123: 0.48 | G123: 80.64 | H123: 32 | I123: 0.48 | J123: 15.36 | L123: 核减136辆，原因为：驱动电机功率与推荐目录不一致
D124: CC6470AH05GPHEV | E124: 2 | F124: 0.504 | G124: 1.008 | H124: 0 | I124: 0 | J124: 0 | L124: 核减2辆，原因为：驱动电机功率与推荐目录不一致
D125: CC6470AP02APHEV | E125: 2931 | F125: 0.48 | G125: 1406.88 | H125: 2850 | I125: 0.48 | J125: 1368 | L125: 核减81辆，原因为：78辆需进一步核实后予以清算；3辆车辆注册登记信息有误
D126: CC6470AP22APHEV | E126: 535 | F126: 0.48 | G126: 256.8 | H126: 514 | I126: 0.48 | J126: 246.72 | L126: 核减21辆，原因为：19辆需进一步核实后予以清算；2辆车辆注册登记信息有误
D127: CC6470AP22APHEV | E127: 1 | F127: 0.504 | G127: 0.504 | H127: 1 | I127: 0.504 | J127: 0.504
D128: CC6481AD23CPHEV | E128: 3 | F128: 0.48 | G128: 1.44 | H128: 3 | I128: 0.48 | J128: 1.44
D129: CC6483AD23BPHEV | E129: 2 | F129: 0.48 | G129: 0.96 | H129: 2 | I129: 0.48 | J129: 0.96
D130: CC6483AD23CPHEV | E130: 4 | F130: 0.48 | G130: 1.92 | H130: 4 | I130: 0.48 | J130: 1.92
D131: CC6490AY02APHEV | E131: 641 | F131: 0.48 | G131: 307.68 | H131: 616 | I131: 0.48 | J131: 295.68 | L131: 核减25辆，原因为：1辆新能源乘用车补贴前售价高于30万；23辆需进一步核实后予以清算；1辆车辆注册登记信息有误
D132: CC7000BH00HABEV | E132: 1673 | F132: 1.2474 | G132: 2086.9002 | H132: 1614 | I132: 1.2474 | J132: 2013.3036 | L132: 核减59辆，原因为：57辆需进一步核实后予以清算；2辆车辆注册登记信息有误
D133: CC7000BH00NABEV | E133: 2496 | F133: 1.2474 | G133: 3113.5104 | H133: 2408 | I133: 1.2474 | J133: 3003.7392 | L133: 核减88辆，原因为：83辆需进一步核实后予以清算；5辆车辆注册登记信息有误
D134: CC7000BH01NBBEV | E134: 279 | F134: 1.386 | G134: 386.694 | H134: 279 | I134: 1.386 | J134: 386.694
D135: CC7000BH23BBEV | E135: 30 | F135: 1.26 | G135: 37.8 | H135: 30 | I135: 1.26 | J135: 37.8
D136: CC7000BJ01BBEV | E136: 18309 | F136: 1.26 | G136: 23069.34 | H136: 17529 | I136: 1.26 | J136: 22086.54 | L136: 核减780辆，原因为：734辆需进一步核实后予以清算；46辆车辆注册登记信息有误
D137: CC7000BJ01CBEV | E137: 27531 | F137: 1.134 | G137: 31220.154 | H137: 26575 | I137: 1.134 | J137: 30136.05 | L137: 核减956辆，原因为：921辆需进一步核实后予以清算；35辆车辆注册登记信息有误
D138: CC7000BJ01GBEV | E138: 3813 | F138: 1.008 | G138: 3843.504 | H138: 3727 | I138: 1.008 | J138: 3756.816 | L138: 核减86辆，原因为：1辆未按有关要求上传车辆运行数据；76辆需进一步核实后予以清算；9辆车辆注册登记信息有误
D139: CC7000BJ01JBEV | E139: 2053 | F139: 1.134 | G139: 2328.102 | H139: 1984 | I139: 1.134 | J139: 2249.856 | L139: 核减69辆，原因为：66辆需进一步核实后予以清算；3辆车辆注册登记信息有误
D140: CC7000BJ02ABEV | E140: 1177 | F140: 1.26 | G140: 1483.02 | H140: 1134 | I140: 1.26 | J140: 1428.84 | L140: 核减43辆，原因为：41辆需进一步核实后予以清算；2辆车辆注册登记信息有误
D141: CC7000BJ02BBEV | E141: 2 | F141: 1.26 | G141: 2.52 | H141: 2 | I141: 1.26 | J141: 2.52
D142: CC7000BJ02DBEV | E142: 10 | F142: 1.134 | G142: 11.34 | H142: 10 | I142: 1.134 | J142: 11.34
D143: CC7000BJ02EBEV | E143: 4493 | F143: 1.26 | G143: 5661.18 | H143: 4259 | I143: 1.26 | J143: 5366.34 | L143: 核减234辆，原因为：228辆需进一步核实后予以清算；6辆车辆注册登记信息有误
D144: CC7000CG00ABEV | E144: 1935 | F144: 1.008 | G144: 1950.48 | H144: 1816 | I144: 1.008 | J144: 1830.528 | L144: 核减119辆，原因为：116辆需进一步核实后予以清算；3辆车辆注册登记信息有误
D145: CC7000CG01ABEV | E145: 471 | F145: 1.134 | G145: 534.114 | H145: 444 | I145: 1.134 | J145: 503.496 | L145: 核减27辆，原因为：24辆需进一步核实后予以清算；3辆车辆注册登记信息有误
D146: CC7000ZM00ABEV | E146: 2 | F146: 0.728 | G146: 1.456 | H146: 2 | I146: 0.728 | J146: 1.456
D147: CC7000ZM00BBEV | E147: 3996 | F147: 0.91 | G147: 3636.36 | H147: 3810 | I147: 0.91 | J147: 3467.1 | L147: 核减186辆，原因为：179辆需进一步核实后予以清算；7辆车辆注册登记信息有误
D148: CC7000ZM00CBEV | E148: 2557 | F148: 0.91 | G148: 2326.87 | H148: 2450 | I148: 0.91 | J148: 2229.5 | L148: 核减107辆，原因为：99辆需进一步核实后予以清算；8辆车辆注册登记信息有误
D149: CC7000ZM00EBEV | E149: 1413 | F149: 0.91 | G149: 1285.83 | H149: 1338 | I149: 0.91 | J149: 1217.58 | L149: 核减75辆，原因为：73辆需进一步核实后予以清算；2辆车辆注册登记信息有误
D150: CC7000ZM00FBEV | E150: 6 | F150: 0.91 | G150: 5.46 | H150: 6 | I150: 0.91 | J150: 5.46
D151: CC7000ZM00GBEV | E151: 245 | F151: 0.819 | G151: =E151*F151 -> 200.655 | H151: 233 | I151: 0.819 | J151: =H151*I151 -> 190.827 | L151: 核减12辆，原因为：11辆需进一步核实后予以清算；1辆车辆注册登记信息有误
D152: CC7000ZM00KBEV | E152: 4110 | F152: 0.91 | G152: 3740.1 | H152: 3953 | I152: 0.91 | J152: 3597.23 | L152: 核减157辆，原因为：147辆需进一步核实后予以清算；10辆车辆注册登记信息有误
D153: CC7000ZM02CBEV | E153: 2 | F153: 0.5586 | G153: 1.1172 | H153: 2 | I153: 0.5586 | J153: 1.1172
D154: CC7000ZM02CBEV | E154: 2505 | F154: 0.798 | G154: 1998.99 | H154: 2362 | I154: 0.798 | J154: 1884.876 | L154: 核减143辆，原因为：133辆需进一步核实后予以清算；10辆车辆注册登记信息有误
D155: CC7000ZM02DBEV | E155: 2299 | F155: 0.8288 | G155: 1905.4112 | H155: 2187 | I155: 0.8288 | J155: 1812.5856 | L155: 核减112辆，原因为：102辆需进一步核实后予以清算；10辆车辆注册登记信息有误
D156: CC7000ZM02FBEV | E156: 7694 | F156: 0.7636 | G156: 5875.1384 | H156: 7412 | I156: 0.7636 | J156: 5659.8032 | L156: 核减282辆，原因为：256辆需进一步核实后予以清算；26辆车辆注册登记信息有误
D157: CC7000ZM02GBEV | E157: 1 | F157: 0.8036 | G157: 0.8036 | H157: 1 | I157: 0.8036 | J157: 0.8036
D158: CC7000ZM05ABEV | E158: 1139 | F158: 1.008 | G158: 1148.112 | H158: 1090 | I158: 1.008 | J158: 1098.72 | L158: 核减49辆，原因为：45辆需进一步核实后予以清算；4辆车辆注册登记信息有误
D159: CC7001CE02ABEV | E159: 1 | F159: 0.6552 | G159: 0.6552 | H159: 1 | I159: 0.6552 | J159: 0.6552
D160: CC7001CE03BBEV | E160: 126 | F160: 1.26 | G160: 158.76 | H160: 121 | I160: 1.26 | J160: 152.46 | L160: 核减5辆，原因为：需进一步核实后予以清算
D161: CC7001ZM00BBEV | E161: 1830 | F161: 0.8232 | G161: 1506.456 | H161: 1745 | I161: 0.8232 | J161: 1436.484 | L161: 核减85辆，原因为：80辆需进一步核实后予以清算；5辆车辆注册登记信息有误
D162: CC7001ZM00EBEV | E162: 1 | F162: 0.5625 | G162: 0.5625 | H162: 1 | I162: 0.5625 | J162: 0.5625
D163: CC7001ZM00EBEV | E163: 346 | F163: 0.8036 | G163: 278.0456 | H163: 336 | I163: 0.8036 | J163: 270.0096 | L163: 核减10辆，原因为：需进一步核实后予以清算
D164: CC7001ZM00FBEV | E164: 21 | F164: 0.7636 | G164: 16.0356 | H164: 20 | I164: 0.7636 | J164: 15.272 | L164: 核减1辆，原因为：需进一步核实后予以清算
D165: CC7001ZM01BBEV | E165: 1173 | F165: 0.91 | G165: 1067.43 | H165: 1116 | I165: 0.91 | J165: 1015.56 | L165: 核减57辆，原因为：54辆需进一步核实后予以清算；3辆车辆注册登记信息有误
D166: CC7001ZM01BEV | E166: 1247 | F166: 0.91 | G166: 1134.77 | H166: 1186 | I166: 0.91 | J166: 1079.26 | L166: 核减61辆，原因为：56辆需进一步核实后予以清算；5辆车辆注册登记信息有误
D167: CC7001ZM02CBEV | E167: 666 | F167: 1.008 | G167: 671.328 | H167: 613 | I167: 1.008 | J167: 617.904 | L167: 核减53辆，原因为：52辆需进一步核实后予以清算；1辆车辆注册登记信息有误
B168: 3 | C168: 河北长安汽车有限公司 | D168: 小计 | E168: =SUM(E169:E182) -> 124 | G168: =SUM(G169:G182) -> 114.4484 | H168: =SUM(H169:H182) -> 123 | J168: =SUM(J169:J182) -> 113.5969 | K168: =ROUND(J168,0) -> 114 | M168: 675 | N168: =K168 -> 114 | O168: =K168-N168 -> 0
D169: SC1022DEAABEV | E169: 3 | F169: 0.5947 | G169: =E169*F169 -> 1.7841 | H169: 3 | I169: 0.5947 | J169: =H169*I169 -> 1.7841
D170: SC1022DEAABEV | E170: 9 | F170: 0.8515 | G170: 7.6635 | H170: 8 | I170: 0.8515 | J170: 6.812 | L170: 核减1辆，原因为：需经地方主管部门复核后予以清算
D171: SC1032DBACBEV | E171: 3 | F171: 0.6801 | G171: 2.0403 | H171: 3 | I171: 0.6801 | J171: 2.0403
D172: SC1032DBACBEV | E172: 2 | F172: 0.9737 | G172: 1.9474 | H172: 2 | I172: 0.9737 | J172: 1.9474
D173: SC1032DBADBEV | E173: 3 | F173: 0.8159 | G173: 2.4477 | H173: 3 | I173: 0.8159 | J173: 2.4477
D174: SC1032DBADBEV | E174: 8 | F174: 1.1683 | G174: 9.3464 | H174: 8 | I174: 1.1683 | J174: 9.3464
D175: SC5022XXYDAAABEV | E175: 1 | F175: 0.5947 | G175: 0.5947 | H175: 1 | I175: 0.5947 | J175: 0.5947
D176: SC5031XLCAAABEV | E176: 5 | F176: 0.7367 | G176: 3.6835 | H176: 5 | I176: 0.7367 | J176: 3.6835
D177: SC5031XXYAAEBEV | E177: 2 | F177: 1.0549 | G177: 2.1098 | H177: 2 | I177: 1.0549 | J177: 2.1098
D178: SC5031XXYAAJBEV | E178: 21 | F178: 0.7367 | G178: 15.4707 | H178: 21 | I178: 0.7367 | J178: 15.4707
D179: SC5031XXYAAJBEV | E179: 31 | F179: 1.0549 | G179: 32.7019 | H179: 31 | I179: 1.0549 | J179: 32.7019
D180: SC5032CCYDBACBEV | E180: 3 | F180: 0.8159 | G180: 2.4477 | H180: 3 | I180: 0.8159 | J180: 2.4477
D181: SC5032XXYDBADBEV | E181: 18 | F181: 0.8159 | G181: 14.6862 | H181: 18 | I181: 0.8159 | J181: 14.6862
D182: SC5032XXYDBADBEV | E182: 15 | F182: 1.1683 | G182: 17.5245 | H182: 15 | I182: 1.1683 | J182: 17.5245
A183: 山西省 | B183: 合计 | E183: =SUM(E184:E220)/2 -> 11660 | G183: =SUM(G184:G220)/2 -> 9798.7956 | H183: =SUM(H184:H220)/2 -> 11064 | J183: =SUM(J184:J220)/2 -> 9316.8576 | K183: =K184+K199 -> 9317 | M183: =M184+M199 -> 8368 | N183: =N184+N199 -> 5403 | O183: =O184+O199 -> 3914
B184: 1 | C184: 成都大运汽车集团有限公司 | D184: 小计 | E184: =SUM(E185:E198) -> 8248 | G184: =SUM(G185:G198) -> 6568.7116 | H184: =SUM(H185:H198) -> 7670 | J184: =SUM(J185:J198) -> 6101.602 | K184: =ROUND(J184,0) -> 6102 | M184: 2188 | N184: =M184 -> 2188 | O184: =K184-N184 -> 3914
D185: CGC6481BEV2P1 | E185: 105 | F185: 0.635 | G185: =E185*F185 -> 66.675 | H185: =101-6 -> 95 | I185: 0.635 | J185: =H185*I185 -> 60.325 | L185: 核减10辆，原因为：6辆不符合行驶里程数要求；3辆车辆注册登记信息有误；1辆需经地方主管部门复核后予以清算
D186: CGC6481BEV2P1 | E186: 2 | F186: 0.7056 | G186: 1.4112 | H186: =2-1 -> 1 | I186: 0.7056 | J186: 0.7056 | L186: 核减1辆，原因为：不符合行驶里程数要求
D187: CGC6481BEV2P1 | E187: 766 | F187: 0.9072 | G187: 694.9152 | H187: =766-13 -> 753 | I187: 0.9072 | J187: 683.1216 | L187: 核减13辆，原因为：不符合行驶里程数要求
D188: CGC6481BEV2P1 | E188: 89 | F188: 0.9072 | G188: 80.7408 | H188: 8 | I188: 0.6415 | J188: 5.132 | L188: 核减81辆，原因为：10辆未按有关要求上传车辆运行数据；63辆需进一步核实后予以清算；8辆车辆注册登记信息有误
D189: CGC6481BEV2P1 | E189: 7 | F189: 1.008 | G189: 7.056 | H189: 7 | I189: 1.008 | J189: 7.056
D190: CGC6481BEV2P1 | E190: 1 | F190: 1.008 | G190: 1.008 | H190: 1 | I190: 0.7056 | J190: 0.7056
D191: CGC7000BEV2J3 | E191: 8 | F191: 0.5733 | G191: 4.5864 | H191: 8 | I191: 0.5733 | J191: 4.5864
D192: CGC7000BEV2J3 | E192: 1412 | F192: 0.819 | G192: 1156.428 | H192: 1412 | I192: 0.819 | J192: 1156.428
D193: CGC7000BEV2J3 | E193: 121 | F193: 0.819 | G193: 99.099 | H193: 4 | I193: 0.5733 | J193: 2.2932 | L193: 核减117辆，原因为：27辆未按有关要求上传车辆运行数据；81辆需进一步核实后予以清算；9辆车辆注册登记信息有误
D194: CGC7000BEV2J4 | E194: 2 | F194: 0.819 | G194: 1.638 | H194: 2 | I194: 0.819 | J194: 1.638
D195: CGC7000BEV2J5 | E195: 1 | F195: 0.5408 | G195: 0.5408 | H195: 1 | I195: 0.5408 | J195: 0.5408
D196: CGC7000BEV2J5 | E196: 10 | F196: 0.7649 | G196: 7.649 | H196: 10 | I196: 0.7649 | J196: 7.649
D197: CGC7000BEV2J5 | E197: 4785 | F197: 0.7726 | G197: 3696.891 | H197: 4448 | I197: 0.7726 | J197: 3436.5248 | L197: 核减337辆，原因为：24辆未按有关要求上传车辆运行数据；295辆需进一步核实后予以清算；14辆车辆注册登记信息有误；4辆现场核查不通过
D198: CGC7000BEV2J5 | E198: 939 | F198: 0.7988 | G198: 750.0732 | H198: 920 | I198: 0.7988 | J198: 734.896 | L198: 核减19辆，原因为：2辆未按有关要求上传车辆运行数据；12辆需进一步核实后予以清算；4辆车辆注册登记信息有误；1辆现场核查不通过
B199: 2 | C199: 山西新能源汽车工业有限公司 | D199: 小计 | E199: =SUM(E200:E220) -> 3412 | G199: =SUM(G200:G220) -> 3230.084 | H199: =SUM(H200:H220) -> 3394 | J199: =SUM(J200:J220) -> 3215.2556 | K199: =ROUND(J199,0) -> 3215 | M199: 6180 | N199: =K199 -> 3215 | O199: =K199-N199 -> 0
D200: JHC5030XXYBEVK2 | E200: 104 | F200: 0.884 | G200: =E200*F200 -> 91.936 | H200: 104 | I200: 0.884 | J200: =H200*I200 -> 91.936
... 2280 more rows
